bitfinex-derivatives/quotes_SOLF0:USTF0_20240905
["timestamp","ask_amount","ask_price","bid_price","bid_amount"]
[1725576552473,3.91738401,129.58,129.55,26.70767806]
[1725576552474,0.05768401,129.58,129.55,26.70767806]
[1725576552868,0.05768401,129.58,129.57,3.8598]
[1725576558084,0.05768401,129.58,129.56,3.86]
[1725576559582,0.05768401,129.58,129.57,3.8598]
[1725576562882,0.05768401,129.58,129.55,0.03767806]
[1725576563088,0.05768401,129.58,129.56,3.86]
[1725576563282,0.05768401,129.58,129.55,0.03767806]
[1725576563490,0.05768401,129.58,129.55,3.89797806]
[1725576564384,3.8599,129.57,129.55,3.89797806]
[1725576564684,0.05768401,129.58,129.56,3.8601]
[1725576565187,0.05768401,129.58,129.55,3.89797806]
[1725576565987,0.05768401,129.58,129.57,3.8598]
[1725576566785,3.91738401,129.58,129.56,3.8599]
[1725576567585,0.05768401,129.58,129.56,3.8599]
[1725576567991,0.05768401,129.58,129.57,3.8598]
[1725576569687,28.0624,129.68,129.6,3.8587]
[1725576569894,3.8582,129.63,129.6,3.8587]
[1725576570187,26.67,129.66,129.59,3.8591]
[1725576570387,3.8585,129.62,129.59,3.8591]
[1725576570594,3.76696194,129.62,129.55,26.67]
[1725576570793,0.04945519,129.6,129.57,3.91197928]
[1725576570988,3.8593,129.59,129.57,0.05227928]
[1725576571792,3.8595,129.58,129.57,0.05227928]
[1725576572391,3.8604,129.56,129.5,30.62716193]
[1725576572592,3.8604,129.56,129.53,3.8609]
[1725576573290,3.8607,129.55,129.53,0.05197769]
[1725576573893,3.9175045,129.56,129.53,3.91297769]
[1725576574093,0.0572045,129.56,129.53,0.05197769]
[1725576575199,3.9175045,129.56,129.53,3.91297769]
[1725576576996,3.8606,129.55,129.53,0.05197769]
[1725576577801,0.0572045,129.56,129.53,0.05197769]
[1725576578403,0.0572045,129.56,129.53,3.91287769]
[1725576579305,3.8605,129.55,129.53,3.91287769]
[1725576581700,0.0572045,129.56,129.4,80.97506436]
[1725576581904,26.67,129.55,129.43,26.67]
[1725576582102,30.54954023,129.55,129.43,30.5240525]
[1725576582401,3.8618,129.51,129.48,3.8625]
[1725576582602,30.54954023,129.55,129.48,3.8625]
[1725576582805,0.05369426,129.53,129.5,0.04945612]
[1725576584807,3.8615,129.52,129.5,0.04945612]
[1725576589120,3.8616,129.51,129.5,0.04945612]
[1725576591822,3.8615,129.52,129.5,0.04945612]
[1725576592613,3.8616,129.51,129.5,0.04945612]
[1725576592916,0.05369426,129.53,129.5,3.91125612]
[1725576593312,3.8614,129.52,129.5,3.91125612]
[1725576594014,3.91489426,129.53,129.5,3.91125612]
[1725576595721,0.05369426,129.53,129.5,0.04945612]
[1725576596417,3.8616,129.51,129.5,0.04945612]
[1725576598014,0.05369426,129.53,129.5,3.9673632]
[1725576598219,0.05369426,129.53,129.5,0.04945612]
[1725576598620,0.05369426,129.53,129.52,3.8613]
[1725576601725,0.05369426,129.53,129.51,5.2317]
[1725576602027,0.05369426,129.53,129.5,0.04945612]
[1725576602221,3.91489426,129.53,129.5,3.91125612]
[1725576602625,3.91489426,129.53,129.5,0.04945612]
[1725576603422,0.05369426,129.53,129.5,0.04945612]
[1725576604235,3.8616,129.51,129.5,0.04945612]
[1725576605435,3.8628,129.47,129.43,1.3543]
[1725576605830,3.8628,129.47,129.44,3.8636]
[1725576606335,30.6152505,129.51,129.42,3.8641]
[1725576606535,0.05641761,129.48,129.45,0.0528069]
[1725576607033,3.8631,129.46,129.45,0.0528069]
[1725576610433,3.8628,129.47,129.45,0.0528069]
[1725576611036,3.8631,129.46,129.45,0.0528069]
[1725576612531,3.863,129.47,129.45,0.0528069]
[1725576614436,3.8631,129.46,129.45,0.0528069]
[1725576619847,3.8631,129.46,129.45,0.0328069]
[1725576621340,3.8631,129.46,129.42,3.8643]
[1725576621341,3.8642,129.43,129.41,3.8646]
[1725576621545,29.3888,129.47,129.4,77.39506506]
[1725576621846,26.67,129.45,129.39,3.865]
[1725576622137,3.8645,129.42,129.39,3.865]
[1725576622344,3.91995085,129.42,129.39,0.05523123]
[1725576622645,3.91995085,129.42,129.4,3.8649]
[1725576622946,0.05545085,129.42,129.39,3.9176728]
[1725576623142,0.05545085,129.42,129.4,3.8647]
[1725576623749,3.91985085,129.42,129.4,3.8647]
[1725576624441,0.05545085,129.42,129.39,0.05523123]
[1725576626339,0.05545085,129.42,129.39,26.72523123]
[1725576626544,0.05545085,129.42,129.41,3.8646]
[1725576634751,0.05545085,129.42,129.4,3.8647]
[1725576635159,3.91995085,129.42,129.4,3.8647]
[1725576638455,3.91995085,129.42,129.39,3.92023123]
[1725576638858,3.91995085,129.42,129.39,0.05523123]
[1725576639154,0.05545085,129.42,129.39,3.92033123]
[1725576639658,3.92005085,129.42,129.39,3.92033123]
[1725576640360,3.8649,129.4,129.39,0.05523123]
[1725576642158,3.8657,129.38,129.35,3.8662]
[1725576642858,3.8657,129.38,129.36,3.866]
[1725576643158,0.0501609,129.38,129.36,0.0499017]
[1725576644354,3.8658,129.37,129.36,0.0499017]
[1725576644559,0.0501609,129.38,129.37,3.8658]
[1725576648463,0.0501609,129.38,129.36,0.0499017]
[1725576648962,0.0501609,129.38,129.36,3.9158017]
[1725576650174,3.9157609,129.38,129.36,0.0499017]
[1725576650965,3.8658,129.37,129.36,0.0499017]
[1725576657369,3.8669,129.34,129.3,2.6715]
[1725576657672,26.67,129.34,129.29,3.8682]
[1725576657873,26.67,129.32,129.27,3.88145971]
[1725576658070,30.62764259,129.32,129.27,3.88145971]
[1725576658376,3.8683,129.29,129.28,0.05363012]
[1725576658970,3.868,129.3,129.28,0.05363012]
[1725576660869,3.8682,129.29,129.28,0.05363012]
[1725576661970,26.67,129.3,129.21,2.7189]
[1725576662475,3.869,129.27,129.24,3.8695]
[1725576662971,0.05842181,129.27,129.24,0.04976319]
[1725576663177,0.05842181,129.27,129.25,3.86249175]
[1725576663378,1.3368,129.33,129.25,26.67]
[1725576663577,3.8671,129.33,129.25,30.4543209]
[1725576663875,1.3926,129.37,129.26,1.3487]
[1725576663876,27.9756,129.36,129.26,1.3487]
[1725576664076,27.9756,129.36,129.3,3.8679]
[1725576664467,0.05285313,129.34,129.32,0.05819842]
[1725576665181,3.91965313,129.34,129.32,0.05819842]
[1725576665375,0.05285313,129.34,129.32,0.05819842]
[1725576665871,0.05285313,129.34,129.33,3.867]
[1725576667279,0.05285313,129.34,129.32,3.92539842]
[1725576667780,0.05285313,129.34,129.32,0.05819842]
[1725576669184,0.05285313,129.34,129.32,3.92216802]
[1725576669381,0.05285313,129.34,129.33,3.867]
[1725576669886,0.05285313,129.34,129.32,0.05819842]
[1725576670082,0.05285313,129.34,129.33,3.867]
[1725576672791,0.05285313,129.34,129.32,0.05819842]
[1725576673897,3.91955313,129.34,129.32,3.92549842]
[1725576674599,0.05285313,129.34,129.32,3.92549842]
[1725576675096,0.05285313,129.34,129.32,0.05819842]
[1725576675300,3.91975313,129.34,129.32,0.05819842]
[1725576675593,3.91975313,129.34,129.32,3.92529842]
[1725576675594,0.05285313,129.34,129.32,3.92529842]
[1725576675900,3.91955313,129.34,129.32,3.92529842]
[1725576676093,0.05285313,129.34,129.33,3.867]
[1725576681195,1.4345,129.41,129.37,3.8657]
[1725576681196,28.1045,129.41,129.37,3.8657]
[1725576681901,3.865,129.4,129.37,3.8657]
[1725576682303,3.92366951,129.4,129.37,3.91710417]
[1725576682804,0.05866951,129.4,129.38,3.8654]
[1725576683406,3.92376951,129.4,129.38,3.8654]
[1725576683801,0.05866951,129.4,129.39,3.8652]
[1725576697306,26.67,129.47,129.42,3.8641]
[1725576697505,3.86556887,129.46,129.42,3.8641]
[1725576697706,3.8635,129.45,129.42,3.8641]
[1725576698313,3.92073854,129.45,129.42,3.91493355]
[1725576699009,3.8637,129.44,129.42,3.91493355]
[1725576703815,0.05723854,129.45,129.42,0.05083355]
[1725576704216,0.05723854,129.45,129.42,3.91513355]
[1725576704217,3.8639,129.44,129.42,3.91513355]
[1725576705811,3.864,129.43,129.42,0.05083355]
[1725576720529,3.92083854,129.45,129.42,0.05083355]
[1725576720728,0.05723854,129.45,129.42,0.05083355]
[1725576721324,3.8638,129.44,129.42,3.91503355]
[1725576722130,10.74723854,129.45,129.42,0.05083355]
[1725576722328,10.69,129.44,129.42,0.05083355]
[1725576722732,3.864,129.43,129.42,0.05083355]
[1725576722929,0.05723854,129.45,129.42,0.05083355]
[1725576723136,3.8639,129.44,129.42,0.05083355]
[1725576724930,0.05723854,129.45,129.42,3.91503355]
[1725576724931,3.92083854,129.45,129.42,3.91503355]
[1725576725234,0.05723854,129.45,129.42,0.05083355]
[1725576725434,0.05723854,129.45,129.44,3.8637]
[1725576725630,0.05723854,129.45,129.44,14.5537]
[1725576726035,0.05723854,129.45,129.42,10.74083355]
[1725576726232,0.05723854,129.45,129.42,0.05083355]
[1725576726428,3.8637,129.44,129.42,0.05083355]
[1725576730936,0.05723854,129.45,129.42,10.74083355]
[1725576731638,0.05723854,129.45,129.43,10.69]
[1725576732034,0.05723854,129.45,129.44,3.8637]
[1725576734344,228.0,129.57,129.43,17.27299791]
[1725576734534,26.99891745,129.61,129.43,17.27299791]
[1725576734535,10.69,129.55,129.49,10.69]
[1725576734736,3.8614,129.52,129.48,14.5523]
[1725576734940,3.8614,129.52,129.48,10.69]
[1725576735346,0.04965189,129.51,129.49,0.05215259]
[1725576735541,0.04965189,129.51,129.49,3.91415259]
[1725576735743,0.04965189,129.51,129.49,0.05215259]
[1725576735936,0.04965189,129.51,129.49,10.74215259]
[1725576737351,0.04965189,129.51,129.5,3.8619]
[1725576737851,0.04965189,129.51,129.5,14.5519]
[1725576738256,0.04965189,129.51,129.5,3.8619]
[1725576739159,1.3033,129.6,129.49,10.74215259]
[1725576739160,1.3033,129.6,129.53,3.8609]
[1725576739361,0.28396181,129.59,129.51,10.69]
[1725576739561,10.69,129.58,129.51,10.69]
[1725576739854,3.8606,129.55,129.52,3.8612]
[1725576740054,3.93336471,129.57,129.51,10.69]
[1725576740258,3.8609,129.54,129.53,0.05316919]
[1725576740558,3.8609,129.54,129.48,10.69]
[1725576740559,3.84112951,129.54,129.48,10.69]
[1725576740957,3.8615,129.52,129.49,3.862]
[1725576741359,3.8617,129.51,129.49,3.862]
[1725576741553,3.91271913,129.51,129.49,3.91801787]
[1725576742452,3.8619,129.5,129.49,0.05601787]
[1725576742955,10.69,129.5,129.44,3.8636]
[1725576743755,10.69,129.49,129.43,10.69]
[1725576744056,0.05745067,129.47,129.45,0.05103606]
[1725576745461,3.8631,129.46,129.45,0.05103606]
[1725576746163,0.05745067,129.47,129.45,0.05103606]
[1725576746853,0.05745067,129.47,129.45,3.91433606]
[1725576747261,0.05745067,129.47,129.46,3.8631]
[1725576748262,0.05745067,129.47,129.45,3.91433606]
[1725576749149,0.05745067,129.47,129.46,3.8631]
[1725576749559,1.4032,129.53,129.46,26.71]
[1725576749958,1.4032,129.53,129.47,3.8625]
[1725576750364,3.8619,129.5,129.47,3.8625]
[1725576750555,0.05572763,129.5,129.47,0.05392283]
[1725576751358,3.8625,129.48,129.47,0.05392283]
[1725576754861,3.8623,129.49,129.47,0.05392283]
[1725576755164,0.05572763,129.5,129.47,0.05392283]
[1725576756867,0.05572763,129.5,129.48,3.8623]
[1725576757268,3.91772763,129.5,129.48,3.8623]
[1725576758066,0.05572763,129.5,129.48,3.8623]
[1725576758466,0.05572763,129.5,129.47,0.05392283]
[1725576758671,3.8624,129.49,129.47,0.05392283]
[1725576759875,3.8624,129.49,129.47,3.91662283]
[1725576764875,0.05572763,129.5,129.47,0.05392283]
[1725576765267,3.8624,129.49,129.47,3.91672283]
[1725576766676,3.8624,129.49,129.47,0.05392283]
[1725576768079,3.8624,129.49,129.47,3.91672283]
[1725576768877,3.8625,129.48,129.47,0.05392283]
[1725576770576,0.05572763,129.5,129.47,0.05392283]
[1725576770781,0.05572763,129.5,129.47,10.73392283]
[1725576771571,3.91782763,129.5,129.48,3.8625]
[1725576771770,3.91782763,129.5,129.47,10.73392283]
[1725576771975,0.05572763,129.5,129.47,0.05392283]
[1725576772271,3.8625,129.48,129.47,0.05392283]
[1725576772874,3.8637,129.44,129.41,12.1101]
[1725576773977,3.91964423,129.44,129.41,12.16323757]
[1725576774282,3.91964423,129.44,129.42,3.8642]
[1725576774683,0.05594423,129.44,129.42,10.68]
[1725576774977,0.05594423,129.44,129.43,14.544]
[1725576776878,10.68,129.51,129.43,10.68]
[1725576777085,3.8624,129.49,129.46,14.543]
[1725576777476,3.8626,129.48,129.46,14.543]
[1725576777971,3.91149409,129.48,129.46,14.60065289]
[1725576778180,3.91149409,129.48,129.46,3.92065289]
[1725576778687,3.91149409,129.48,129.46,0.05765289]
[1725576779084,3.8628,129.47,129.46,0.05765289]
[1725576780876,7.65363759,129.47,129.46,0.05765289]
[1725576783675,3.8628,129.47,129.46,0.05765289]
[1725576784882,7.63519265,129.47,129.46,0.05765289]
[1725576787789,3.8628,129.47,129.46,0.05765289]
[1725576789878,3.91159409,129.48,129.46,0.05765289]
[1725576790081,0.04889409,129.48,129.46,0.05765289]
[1725576790484,0.04889409,129.48,129.47,3.8628]
[1725576790991,0.04889409,129.48,129.47,30.5628]
[1725576791489,0.04889409,129.48,129.47,34.4356395]
[1725576791683,0.04889409,129.48,129.47,35.8506395]
[1725576792188,0.04889409,129.48,129.47,31.9778]
[1725576797391,0.04889409,129.48,129.46,0.05765289]
[1725576797891,3.8628,129.47,129.46,0.05765289]
[1725576798092,0.04889409,129.48,129.46,0.05765289]
[1725576799495,3.8628,129.47,129.46,0.05765289]
[1725576804387,18.47909317,129.47,129.46,0.05765289]
[1725576805192,18.47909317,129.47,129.41,10.69]
[1725576805399,18.47909317,129.47,129.41,14.5546]
[1725576805400,3.8642,129.43,129.41,14.5546]
[1725576805697,10.69,129.45,129.39,1.4055]
[1725576805900,3.8649,129.41,129.39,1.4055]
[1725576806105,10.69,129.45,129.38,14.5553]
[1725576806294,0.05542209,129.43,129.4,0.05272576]
[1725576806497,3.8646,129.41,129.4,0.05272576]
[1725576808790,12.16242209,129.43,129.34,1.3937]
[1725576808791,10.69,129.42,129.34,1.3937]
[1725576808995,10.69,129.4,129.34,1.3937]
[1725576809196,10.69,129.4,129.33,86.61007826]
[1725576809197,14.54521937,129.39,129.33,3.8669]
[1725576809396,10.69,129.39,129.33,3.8669]
[1725576809894,0.05411798,129.37,129.35,0.05218821]
[1725576810900,3.8661,129.36,129.35,0.05218821]
[1725576817610,367.62612856,129.46,129.35,30.70345771]
[1725576817799,4.2095,129.45,129.35,26.72]
[1725576818003,3.8646,129.42,129.39,3.8651]
[1725576818505,3.92123786,129.42,129.39,3.92196144]
[1725576819705,3.92123786,129.42,129.4,3.8649]
[1725576820608,0.05663786,129.42,129.4,3.8649]
[1725576820807,0.05663786,129.42,129.39,26.77686144]
[1725576822406,0.05663786,129.42,129.41,3.8646]
[1725576828111,3.8631,129.47,129.44,3.8635]
[1725576828912,3.8631,129.47,129.44,3.91798357]
[1725576828913,3.8632,129.46,129.44,3.91798357]
[1725576829532,0.05718758,129.47,129.44,0.05448357]
[1725576831316,3.8631,129.46,129.44,0.05448357]
[1725576834613,3.8634,129.45,129.44,0.05448357]
[1725576840016,0.05718758,129.47,129.44,0.05448357]
[1725576841319,3.8634,129.45,129.44,0.05448357]
[1725576842523,3.8633,129.46,129.44,3.91818357]
[1725576843615,0.05718758,129.47,129.44,10.74448357]
[1725576844022,0.05718758,129.47,129.46,3.8631]
[1725576844221,0.05718758,129.47,129.46,14.5531]
[1725576845919,3.78119743,129.59,129.46,10.69]
[1725576846125,10.69,129.57,129.5,10.69]
[1725576846519,3.861,129.54,129.51,3.8615]
[1725576846819,10.69,129.57,129.51,3.8615]
[1725576847014,3.8615,129.52,129.51,0.05745661]
[1725576850222,3.8623,129.49,129.47,10.69]
[1725576850426,10.69,129.51,129.45,10.69]
[1725576850924,3.8624,129.49,129.46,3.8629]
[1725576851421,3.91632847,129.49,129.46,3.91652272]
[1725576854225,3.91632847,129.49,129.46,14.60652272]
[1725576857324,3.8626,129.48,129.46,14.60652272]
[1725576859625,3.91632847,129.49,129.47,3.8626]
[1725576859836,0.05392847,129.49,129.48,10.69]
[1725576860427,0.05392847,129.49,129.48,14.5525]
[1725576860634,1.4185,129.56,129.48,10.69]
[1725576860929,1.4185,129.56,129.52,10.69]
[1725576861127,3.8609,129.54,129.52,10.69]
[1725576861636,3.91261432,129.54,129.52,10.74078244]
[1725576861833,3.91261432,129.54,129.52,14.60198244]
[1725576870240,0.05171432,129.54,129.52,14.60198244]
[1725576871544,3.91241432,129.54,129.52,14.60198244]
[1725576871838,0.05171432,129.54,129.52,0.05078244]
[1725576873338,3.861,129.53,129.52,0.05078244]
[1725576903056,0.05171432,129.54,129.52,10.74078244]
[1725576904766,0.05171432,129.54,129.53,3.861]
[1725576910467,3.86,129.57,129.54,3.8605]
[1725576911074,3.86,129.57,129.54,3.8607]
[1725576911465,3.86,129.57,129.55,10.69]
[1725576911466,0.05113212,129.57,129.55,10.69]
[1725576911672,0.05113212,129.57,129.56,3.86]
[1725576911866,0.05113212,129.57,129.56,14.55]
[1725576912069,0.05113212,129.57,129.56,3.86]
[1725576912367,0.05113212,129.57,129.56,14.55]
[1725576917672,0.28383793,129.62,129.58,3.8593]
[1725576917875,102.01536363,129.63,129.59,10.69]
[1725576918069,100.61356363,129.63,129.59,10.69]
[1725576918271,3.8586,129.62,129.59,14.5491]
[1725576918665,3.90880147,129.62,129.59,14.60573709]
[1725576919776,3.8587,129.61,129.59,10.74663709]
[1725576923285,3.8587,129.61,129.59,14.60583709]
[1725576928180,3.8587,129.61,129.59,10.74663709]
[1725576928375,3.8587,129.61,129.59,0.05663709]
[1725576930277,3.8589,129.6,129.59,0.05663709]
[1725576945993,3.8588,129.61,129.59,0.05663709]
[1725576949098,3.8589,129.6,129.59,0.05663709]
[1725576952995,3.90870147,129.62,129.59,10.74663709]
[1725576953192,0.05020147,129.62,129.61,10.69]
[1725576954401,0.05020147,129.62,129.61,14.5486]
[1725576964818,2.6841,129.69,129.64,3.8576]
[1725576965123,2.6841,129.69,129.65,10.69]
[1725576965420,3.8573,129.66,129.65,10.69]
[1725576971123,3.8575,129.65,129.64,0.05809742]
[1725576975124,3.8584,129.62,129.6,14.5488]
[1725576976130,3.91366327,129.62,129.6,14.60014779]
[1725576980525,3.8586,129.61,129.6,0.05134779]
[1725576984136,3.8586,129.61,129.6,10.74134779]
[1725576987333,3.8586,129.61,129.6,0.05134779]
[1725576990240,3.8601,129.57,129.54,3.89725914]
[1725576990541,3.8601,129.57,129.54,3.8606]
[1725576990744,3.8601,129.57,129.55,10.69]
[1725576991239,3.91837202,129.57,129.55,10.69]
[1725576991441,3.91837202,129.57,129.55,10.74406557]
[1725576992939,3.8601,129.56,129.55,10.74406557]
[1725576995840,3.91817202,129.57,129.55,14.60446557]
[1725576996036,3.91817202,129.57,129.56,10.69]
[1725576996648,0.05827202,129.57,129.56,14.5501]
[1725577001947,3.91807202,129.57,129.56,10.69]
[1725577002451,0.05827202,129.57,129.56,10.69]
[1725577003449,0.05827202,129.57,129.56,14.5501]
[1725577018673,0.05827202,129.57,129.55,0.05406557]
[1725577019164,3.8601,129.56,129.55,0.05406557]
[1725577020165,3.8601,129.56,129.55,10.74406557]
[1725577021262,0.05827202,129.57,129.55,10.74406557]
[1725577021568,0.05827202,129.57,129.56,10.69]
[1725577021965,0.05827202,129.57,129.56,14.5501]
[1725577022668,3.91807202,129.57,129.56,10.69]
[1725577023057,3.91807202,129.57,129.55,14.60426557]
[1725577024759,0.05827202,129.57,129.56,14.5501]
[1725577025963,0.05827202,129.57,129.56,3.8601]
[1725577026371,0.05827202,129.57,129.56,14.5501]
[1725577030368,3.859,129.6,129.58,3.8593]
[1725577030561,3.8588,129.61,129.59,10.69]
[1725577031369,3.91396844,129.61,129.59,10.74878879]
[1725577035170,3.8589,129.6,129.59,0.05878879]
[1725577036875,0.05516844,129.61,129.59,0.05878879]
[1725577037476,3.8589,129.6,129.59,0.05878879]
[1725577040384,0.05516844,129.61,129.59,10.74878879]
[1725577041182,0.05516844,129.61,129.6,3.8589]
[1725577044593,3.91376844,129.61,129.59,3.91788879]
[1725577044893,3.91376844,129.61,129.59,14.60788879]
[1725577045793,0.05516844,129.61,129.6,3.8589]
[1725577045995,0.05516844,129.61,129.59,0.05878879]
[1725577046495,3.8589,129.6,129.59,0.05878879]
[1725577046785,3.91396844,129.61,129.59,3.91788879]
[1725577059798,0.05516844,129.61,129.59,0.05878879]
[1725577060004,0.05516844,129.61,129.6,3.8589]
[1725577060711,1.4109,129.65,129.63,3.858]
[1725577061311,5.2686,129.65,129.63,3.858]
[1725577061810,5.32746213,129.65,129.63,3.91192043]
[1725577063702,5.32746213,129.65,129.63,0.05392043]
[1725577067709,0.05886213,129.65,129.63,0.05392043]
[1725577068811,0.05886213,129.65,129.64,3.8577]
[1725577069807,0.05886213,129.65,129.64,14.5477]
[1725577071811,0.05886213,129.65,129.63,3.91182043]
[1725577072011,0.05886213,129.65,129.63,0.05392043]
[1725577072208,1.40686213,129.65,129.63,0.05392043]
[1725577072411,3.8577,129.64,129.63,0.05392043]
[1725577072609,13.41806213,129.65,129.6,3.8588]
[1725577073013,13.41806213,129.65,129.57,2.8564]
[1725577073312,10.69,129.63,129.56,10.69]
[1725577073513,3.8592,129.6,129.58,0.0548261]
[1725577075404,3.8592,129.59,129.58,0.0548261]
[1725577079811,1.3781,129.59,129.53,10.69]
[1725577080211,3.8603,129.56,129.53,14.5508]
[1725577080407,15.86991015,129.59,129.47,2.788]
[1725577080617,0.0538076,129.56,129.54,0.05412811]
[1725577080817,3.8606,129.55,129.54,0.05412811]
[1725577090111,0.0538076,129.56,129.54,0.05412811]
[1725577091320,3.8604,129.55,129.54,0.05412811]
[1725577093719,3.8614,129.52,129.5,81.16263232]
[1725577094414,12.0857,129.55,129.48,10.69]
[1725577094617,12.0857,129.55,129.48,14.5523]
[1725577094813,0.05765778,129.53,129.5,0.05761641]
[1725577095321,3.8618,129.51,129.5,0.05761641]
[1725577110631,3.8615,129.52,129.5,0.05761641]
[1725577110834,0.05765778,129.53,129.5,0.05761641]
[1725577112337,3.8613,129.52,129.5,3.91951641]
[1725577114434,3.91885778,129.53,129.5,3.91951641]
[1725577119449,3.91885778,129.53,129.51,3.8616]
[1725577121142,0.05765778,129.53,129.52,3.8613]
[1725577125246,0.05765778,129.53,129.52,14.5513]
[1725577125752,0.05765778,129.53,129.52,3.8613]
[1725577137976,0.05765778,129.53,129.51,14.5514]
[1725577138176,0.05765778,129.53,129.5,10.74761641]
[1725577138671,0.05765778,129.53,129.52,3.8613]
[1725577143178,0.05765778,129.53,129.51,14.5514]
[1725577143780,3.91885778,129.53,129.51,3.8614]
[1725577146882,0.05765778,129.53,129.52,3.8613]
[1725577149981,0.05765778,129.53,129.5,0.05761641]
[1725577149982,2.8285,129.62,129.57,3.8598]
[1725577150286,4.2595,129.62,129.57,3.8598]
[1725577150684,3.8594,129.59,129.57,3.8598]
[1725577150883,3.8594,129.59,129.57,3.91259705]
[1725577151179,3.91597811,129.59,129.57,3.91259705]
[1725577152579,0.05657811,129.59,129.57,3.91259705]
[1725577152789,0.05657811,129.59,129.57,14.60259705]
[1725577153985,3.91587811,129.59,129.57,14.60259705]
[1725577159691,0.05657811,129.59,129.58,3.8595]
[1725577160591,0.05657811,129.59,129.58,14.5495]
[1725577163000,0.05657811,129.59,129.58,3.8595]
[1725577163197,0.05657811,129.59,129.57,3.91259705]
[1725577164296,3.91597811,129.59,129.57,3.91259705]
[1725577164499,0.05657811,129.59,129.57,0.05279705]
[1725577165499,3.8595,129.58,129.57,0.05279705]
[1725577174593,3.91597811,129.59,129.57,3.91259705]
[1725577186711,0.05657811,129.59,129.58,3.8595]
[1725577186909,0.05657811,129.59,129.58,14.5495]
[1725577199332,10.69,129.67,129.61,10.69]
[1725577199528,3.8579,129.64,129.61,10.69]
[1725577199832,3.81066666,129.66,129.56,4.1102]
[1725577200030,3.81066666,129.66,129.6,10.69]
[1725577200322,3.8582,129.63,129.62,0.05534456]
[1725577202833,14.5482,129.63,129.62,0.05534456]
[1725577204225,3.8582,129.63,129.62,0.05534456]
[1725577205628,3.8591,129.6,129.57,10.69]
[1725577205833,12.1139,129.64,129.57,14.5497]
[1725577206029,1.4148,129.63,129.57,14.5497]
[1725577206735,0.05560074,129.61,129.59,0.05863081]
[1725577206931,3.8589,129.6,129.59,0.05863081]
[1725577210626,10.74560074,129.61,129.55,10.69]
[1725577211632,10.74560074,129.61,129.57,0.05748846]
[1725577211633,3.8597,129.58,129.57,0.05748846]
[1725577211830,7.7010702,129.58,129.57,0.05748846]
[1725577213435,3.8597,129.58,129.57,0.05748846]
[1725577215128,3.91272512,129.59,129.57,0.05748846]
[1725577215436,0.05332512,129.59,129.57,10.74748846]
[1725577215932,0.05332512,129.59,129.57,14.60718846]
[1725577216331,0.05332512,129.59,129.57,10.74748846]
[1725577217333,0.05332512,129.59,129.58,3.8595]
[1725577222037,0.05332512,129.59,129.57,0.05748846]
[1725577222834,3.8595,129.58,129.57,0.05748846]
[1725577224436,0.05332512,129.59,129.57,10.74748846]
[1725577224642,0.05332512,129.59,129.58,10.69]
[1725577224838,0.05332512,129.59,129.58,14.5495]
[1725577225344,0.05332512,129.59,129.58,3.8595]
[1725577225743,0.05332512,129.59,129.57,14.60718846]
[1725577226244,0.05332512,129.59,129.57,10.74748846]
[1725577226441,0.05332512,129.59,129.58,3.8595]
[1725577228045,0.05332512,129.59,129.57,14.60718846]
[1725577228536,0.05332512,129.59,129.58,3.8595]
[1725577230043,0.05332512,129.59,129.58,14.5495]
[1725577230950,0.05332512,129.59,129.58,3.8595]
[1725577233447,0.05332512,129.59,129.58,14.5495]
[1725577236748,3.91252512,129.59,129.57,3.91718846]
[1725577236957,3.90550412,129.59,129.57,0.05748846]
[1725577237557,3.8595,129.58,129.57,0.05748846]
[1725577238448,3.8595,129.58,129.5,1.4197]
[1725577238650,16.00750412,129.59,129.5,2.96424783]
[1725577238651,10.69,129.57,129.5,2.96424783]
[1725577238855,10.69,129.57,129.51,10.69]
[1725577239050,18.755479,129.59,129.52,10.69]
[1725577239350,3.8606,129.55,129.52,14.5512]
[1725577239556,3.91669326,129.55,129.52,14.60758965]
[1725577240164,3.91669326,129.55,129.54,10.69]
[1725577240554,0.05609326,129.55,129.54,10.69]
[1725577241055,3.91649326,129.55,129.52,14.60758965]
[1725577241257,0.05609326,129.55,129.52,0.05638965]
[1725577241948,3.861,129.54,129.52,0.05638965]
[1725577242358,3.8609,129.54,129.52,3.91768965]
[1725577242557,0.05609326,129.55,129.52,3.91768965]
[1725577242558,0.05609326,129.55,129.53,10.69]